bitfinex-derivatives/quotes_ETHF0:USTF0_20250501
["timestamp","ask_amount","ask_price","bid_price","bid_amount"]
[1746072251414,1.695,1806.4,1806.3,9.34040651]
[1746072251415,1.10705,1806.4,1806.3,9.34040651]
[1746072251615,1.10705,1806.4,1806.3,60.40137762]
[1746072251826,1.10705,1806.4,1806.3,61.44187762]
[1746072252319,3.2078,1806.6,1806.3,61.44187762]
[1746072252522,1.10685,1806.7,1806.6,1.10688]
[1746072252822,1.10685,1806.7,1806.6,10.44730651]
[1746072253014,1.10688,1806.6,1806.5,3.2078]
[1746072253209,1.10688,1806.6,1806.5,22.80917762]
[1746072253424,1.7154,1806.7,1806.6,1.10688]
[1746072253724,5.48975848,1807.0,1806.7,19.60137762]
[1746072254019,1.7154,1806.9,1806.7,19.60137762]
[1746072254219,1.10686,1806.7,1806.6,1.10686]
[1746072254620,14.64425539,1807.0,1806.9,1.1067]
[1746072254819,9.15449691,1807.0,1806.9,23.91587762]
[1746072255621,9.15449691,1807.0,1806.9,20.70807762]
[1746072255820,9.15449691,1807.0,1806.9,23.91587762]
[1746072256711,9.15449691,1807.0,1806.9,27.48087762]
[1746072256915,3.28636691,1807.0,1806.9,38.31087762]
[1746072257422,3.28636691,1807.0,1806.9,79.11087762]
[1746072259423,2.76383,1807.4,1807.2,1.10647]
[1746072259612,2.76383,1807.4,1807.3,21.21197762]
[1746072259924,2.76383,1807.4,1807.3,22.31842762]
[1746072260124,1.6574,1807.4,1807.3,12.05745651]
[1746072261919,1.1066,1807.1,1806.9,40.8]
[1746072262122,1.10655,1807.2,1807.0,20.64387762]
[1746072262322,1.10655,1807.2,1807.0,21.75046762]
[1746072262727,1.10655,1807.2,1807.1,1.10657]
[1746072262922,1.0827,1807.3,1807.0,15.40411651]
[1746072263120,1.0827,1807.3,1807.0,0.7068]
[1746072263121,1.10657,1807.1,1807.0,0.7068]
[1746072264027,2.12857,1807.1,1807.0,0.7068]
[1746072264222,2.12857,1807.1,1807.0,2.439]
[1746072265024,1.022,1807.1,1807.0,3.54564]
[1746072265527,2.71296,1807.2,1807.1,1.10657]
[1746072265725,2.71296,1807.2,1807.1,11.07260651]
[1746072265929,2.71296,1807.2,1807.1,1.7322]
[1746072271730,2.71296,1807.2,1807.1,2.83877]
[1746072272133,2.71296,1807.2,1807.1,1.7322]
[1746072273232,1.10661,1807.1,1806.9,40.8]
[1746072273536,3.80767,1807.1,1807.0,19.60137762]
[1746072273938,1.10664,1807.0,1806.9,43.51107]
[1746072274137,2.76224,1807.0,1806.9,43.51107]
[1746072274333,2.76224,1807.0,1806.9,63.11244762]
[1746072274635,1.6556,1807.0,1806.9,63.11244762]
[1746072275340,2.76224,1807.0,1806.9,63.11244762]
[1746072276036,2.15211,1807.1,1807.0,1.10664]
[1746072276239,1.0455,1807.1,1807.0,22.33271762]
[1746072276634,2.15207,1807.1,1807.0,22.33271762]
[1746072282441,1.0455,1807.1,1807.0,22.33271762]
[1746072283043,2.15207,1807.1,1807.0,22.33271762]
[1746072283738,2.15207,1807.1,1807.0,25.54051762]
[1746072283942,2.15207,1807.1,1807.0,22.33271762]
[1746072286246,2.15207,1807.1,1807.0,12.07174651]
[1746072286436,2.15207,1807.1,1807.0,22.33271762]
[1746072287136,1.0455,1807.1,1807.0,22.33271762]
[1746072287337,3.7912,1807.3,1807.2,1.10651]
[1746072287838,1.10651,1807.2,1807.1,3.83273]
[1746072288038,3.79117,1807.3,1807.2,11.36748111]
[1746072288241,3.79117,1807.3,1807.2,20.70788762]
[1746072288441,3.79117,1807.3,1807.2,1.10651]
[1746072288635,2.12827,1807.3,1807.2,11.36748111]
[1746072290541,2.12827,1807.3,1807.2,20.70788762]
[1746072292646,3.13407,1807.3,1807.2,20.70788762]
[1746072295845,3.13407,1807.3,1807.2,19.60137762]
[1746072298542,4.83887,1807.3,1807.2,19.60137762]
[1746072300044,2.0276,1807.3,1807.2,20.70788762]
[1746072300246,5.51307146,1807.4,1807.3,1.10645]
[1746072300441,5.51307146,1807.4,1807.3,20.70782762]
[1746072301951,5.51307146,1807.4,1807.3,25.70782762]
[1746072302249,2.02161146,1807.4,1807.3,26.12835227]
[1746072302548,5.81431194,1807.5,1807.4,20.65028616]
[1746072302749,2.75902194,1807.5,1807.4,24.94468616]
[1746072302950,1.20427194,1807.5,1807.4,29.94468616]
[1746072303354,1.94e-06,1807.5,1807.4,29.94468616]
[1746072303554,1.94e-06,1807.5,1807.4,30.38402511]
[1746072303751,1.94e-06,1807.5,1807.4,29.94468616]
[1746072304755,1.94e-06,1807.5,1807.4,70.74468616]
[1746072305356,1.94e-06,1807.5,1807.4,76.57468616]
[1746072305550,1.94e-06,1807.5,1807.4,78.24648616]
[1746072306157,1.94e-06,1807.5,1807.4,73.24648616]
[1746072306548,2.6599,1807.9,1807.8,1.10615]
[1746072306847,2.6599,1807.9,1807.8,10.44655651]
[1746072307154,2.6599,1807.9,1807.8,41.90615]
[1746072307344,2.6599,1807.9,1807.8,43.50475]
[1746072308665,1.0852,1807.9,1807.8,43.50475]
[1746072309456,1.0852,1807.9,1807.8,63.04864616]
[1746072309855,1.03,1808.0,1807.9,1.10606]
[1746072310056,1.03,1808.0,1807.9,12.15636651]
[1746072310246,1.03,1808.0,1807.9,2.81596]
[1746072310451,2.6238,1808.0,1807.9,2.81596]
[1746072311855,3.72982,1808.0,1807.9,2.81596]
[1746072318963,2.6238,1808.0,1807.9,2.81596]
[1746072320056,3.72982,1808.0,1807.9,2.81596]
[1746072320561,2.6238,1808.0,1807.9,2.81596]
[1746072322759,2.6238,1808.0,1807.9,43.61596]
[1746072323166,3.72982,1808.0,1807.9,43.61596]
[1746072323765,2.6238,1808.0,1807.9,43.61596]
[1746072324768,2.6238,1808.0,1807.9,53.81944965]
[1746072325967,1.03,1808.0,1807.9,53.81944965]
[1746072327262,2.7277,1808.0,1807.9,53.81944965]
[1746072327462,2.7277,1808.0,1807.9,63.15985616]
[1746072329062,1.03,1808.0,1807.9,63.15985616]
[1746072331065,1.0161,1808.1,1808.0,1.10602]
[1746072331268,1.0161,1808.1,1808.0,22.33031616]
[1746072331468,1.0161,1808.1,1808.0,2.78642]
[1746072331766,1.0161,1808.1,1808.0,3.88312]
[1746072332768,1.0161,1808.1,1808.0,23.42701616]
[1746072334472,4.70681,1808.4,1808.3,1.10584]
[1746072334664,4.69261,1808.4,1808.3,1.10584]
[1746072334863,3.5868,1808.4,1808.3,1.10584]
[1746072337273,3.5868,1808.4,1808.3,2.11314]
[1746072337972,1.0065,1808.4,1808.3,21.65703616]
[1746072338679,2.7534,1808.6,1808.5,1.10572]
[1746072338968,3.8646,1808.6,1808.5,20.64961616]
[1746072339169,3.8646,1808.6,1808.5,1.10572]
[1746072339875,4.97026,1808.6,1808.5,1.10572]
[1746072340171,4.97026,1808.6,1808.5,2.75532]
[1746072340474,3.8646,1808.6,1808.5,22.29921616]
[1746072341175,2.1966,1808.6,1808.5,22.29921616]
[1746072341474,1.1112,1808.6,1808.5,22.29921616]
[1746072342367,2.7056,1808.6,1808.5,22.29921616]
[1746072346185,3.2078,1808.9,1808.5,21.19349616]
[1746072346379,4.63433,1808.8,1808.7,1.10554]
[1746072346675,3.5288,1808.8,1808.7,2.80644]
[1746072346868,4.63433,1808.8,1808.7,2.80644]
[1746072347669,4.63433,1808.8,1808.7,1.7009]
[1746072348267,4.63433,1808.8,1808.7,2.8065]
[1746072348777,4.63433,1808.8,1808.7,1.1056]
[1746072349871,3.5288,1808.8,1808.7,1.1056]
[1746072350285,4.63433,1808.8,1808.7,1.1056]
[1746072352675,4.63433,1808.8,1808.7,20.64949616]
[1746072353779,2.99413,1808.8,1808.7,20.64949616]
[1746072356969,2.99413,1808.8,1808.7,22.22839616]
[1746072358172,1.8886,1808.8,1808.7,22.22839616]
[1746072358369,2.99413,1808.8,1808.7,22.22839616]
[1746072359779,2.99413,1808.8,1808.7,19.54389616]
[1746072360985,4.67093,1808.8,1808.7,19.54389616]
[1746072361189,4.67093,1808.8,1808.7,20.64949616]
[1746072362288,3.5654,1808.8,1808.7,20.64949616]
[1746072362486,3.5654,1808.8,1808.7,22.37339616]
[1746072362686,0.8279,1808.8,1808.7,22.37339616]
[1746072363387,1.93343,1808.8,1808.7,22.37339616]
[1746072363588,0.8279,1808.8,1808.7,22.37339616]
[1746072363786,1.93343,1808.8,1808.7,22.37339616]
[1746072364090,0.8279,1808.8,1808.7,22.37339616]
[1746072365890,2.70847,1808.9,1808.8,1.10553]
[1746072366092,2.70847,1808.9,1808.8,23.16922616]
[1746072366293,2.70847,1808.9,1808.8,3.62533]
[1746072366487,2.73863,1809.0,1808.9,1.10547]
[1746072366688,4.35793,1809.0,1808.9,2.80867]
[1746072367695,3.2525,1809.0,1808.9,43.60867]
[1746072368392,4.35791,1809.0,1808.9,43.60867]
[1746072369693,2.73861,1809.0,1808.9,63.15256616]
[1746072371694,4.42641,1809.0,1808.9,63.15256616]
[1746072374695,3.321,1809.0,1808.9,63.15256616]
[1746072374998,10.81382073,1809.2,1809.1,1.10535]
[1746072375595,10.81382073,1809.2,1809.1,1.92055]
[1746072375795,11.91911073,1809.2,1809.1,1.92055]
[1746072376205,11.91911073,1809.2,1809.1,1.10535]
[1746072377102,10.81382073,1809.2,1809.1,1.10535]
[1746072378099,11.91911073,1809.2,1809.1,1.10535]
[1746072379707,11.91911073,1809.2,1809.1,20.64924616]
[1746072380000,10.81382073,1809.2,1809.1,20.64924616]
[1746072380189,9.07242073,1809.2,1809.1,20.64924616]
[1746072380394,8.20582073,1809.2,1809.1,20.64924616]
[1746072380602,3.2078,1809.3,1809.2,1.10529]
[1746072380804,3.2078,1809.3,1809.2,23.14228616]
[1746072381005,3.2078,1809.3,1809.2,13.80187965]
[1746072381204,3.60112,1809.4,1809.3,1.10523]
[1746072381403,2.4959,1809.4,1809.3,12.08043651]
[1746072381603,3.60107,1809.4,1809.3,2.74003]
[1746072382004,2.4959,1809.4,1809.3,2.74003]
[1746072382601,2.4959,1809.4,1809.3,22.28392616]
[1746072383305,2.4959,1809.4,1809.3,63.08392616]
[1746072385605,3.60107,1809.4,1809.3,63.08392616]
[1746072385906,2.4959,1809.4,1809.3,63.08392616]
[1746072386401,0.8076,1809.5,1809.4,1.10517]
[1746072386598,0.8076,1809.5,1809.4,22.35136616]
[1746072386798,0.8076,1809.5,1809.4,2.80747]
[1746072387304,1.91271,1809.5,1809.4,2.80747]
[1746072387608,3.55731,1809.5,1809.4,2.80747]
[1746072391406,3.55731,1809.5,1809.4,22.35136616]
[1746072392803,2.4522,1809.5,1809.4,22.35136616]
[1746072393106,3.55731,1809.5,1809.4,22.35136616]
[1746072397409,3.56075904,1809.5,1809.4,22.35136616]
[1746072398718,3.56075904,1809.5,1809.4,63.15136616]
[1746072405018,2.75315904,1809.5,1809.4,63.15136616]
[1746072405217,1.10855904,1809.5,1809.4,63.15136616]
[1746072406416,2.73865904,1809.5,1809.4,63.15136616]
[1746072413329,2.73865904,1809.5,1809.4,62.04619616]
[1746072413519,2.73865904,1809.5,1809.4,19.54389616]
[1746072413735,2.76302,1809.4,1809.0,1.6205]
[1746072413936,1.92295,1809.3,1809.2,19.54389616]
[1746072414144,1.10529,1809.2,1809.1,60.34389616]
[1746072414739,2.83849,1809.2,1809.1,61.44924616]
[1746072415044,2.83849,1809.2,1809.1,60.34389616]
[1746072415340,6.62649,1809.2,1809.1,60.34389616]
[1746072419240,6.62649,1809.2,1809.1,61.44924616]
[1746072419441,4.89329,1809.2,1809.1,61.44924616]
[1746072420144,1.10529,1809.2,1809.1,61.44924616]
[1746072422445,1.10529,1809.2,1809.1,60.34389616]
[1746072422937,2.75459,1809.2,1809.1,61.91959616]
[1746072424833,2.75459,1809.2,1809.1,60.34389616]
[1746072425139,1.10547,1808.9,1808.8,1.5757]
[1746072425445,1.1056,1808.7,1808.6,0.8521]
[1746072425636,1.1056,1808.7,1808.6,2.5856]
[1746072425837,1.1056,1808.7,1808.6,21.27739616]
[1746072426141,1.1056,1808.7,1808.6,63.18305616]
[1746072426142,2.7599,1808.7,1808.6,63.18305616]
[1746072427939,2.7599,1808.7,1808.6,62.07739616]
[1746072431947,2.7599,1808.7,1808.6,40.8]
[1746072432242,1.10566,1808.6,1808.5,3.2078]
[1746072432447,2.77436,1808.6,1808.5,3.2078]
[1746072432647,2.77436,1808.6,1808.5,44.0078]
[1746072433950,2.77436,1808.6,1808.5,45.6227]
[1746072435351,2.77436,1808.6,1808.5,4.8227]
[1746072436048,2.77436,1808.6,1808.5,1.6149]
[1746072436855,1.10578,1808.4,1808.3,44.0078]
[1746072437152,1.10578,1808.4,1808.3,42.4325]
[1746072437348,1.10578,1808.4,1808.3,61.97639616]
[1746072437653,1.10578,1808.4,1808.3,63.08223616]
[1746072437852,1.10577,1808.5,1808.4,1.10575]
[1746072438052,4.0248,1808.7,1808.4,21.14689616]
[1746072438358,5.13046,1808.7,1808.6,19.54389616]
[1746072438852,4.31346,1808.7,1808.6,22.25255616]
[1746072439245,4.31346,1808.7,1808.6,21.14689616]
[1746072439444,4.31346,1808.7,1808.6,22.25255616]
[1746072439649,1.10566,1808.7,1808.6,21.14689616]
[1746072440050,1.10566,1808.7,1808.6,22.25255616]
[1746072441657,1.10566,1808.7,1808.6,21.14689616]
[1746072441953,1.10566,1808.7,1808.6,19.54389616]
[1746072442147,4.89366,1808.7,1808.6,19.54389616]
[1746072444151,1.10566,1808.6,1808.5,1.7347]
[1746072444359,3.65376,1808.6,1808.5,1.7347]
[1746072444659,1.10578,1808.4,1808.3,41.6319]
[1746072444955,1.10578,1808.4,1808.3,43.3297]
[1746072445158,1.10578,1808.4,1808.3,62.87359616]
[1746072446057,1.10578,1808.4,1808.3,62.04169616]
[1746072446856,1.10578,1808.4,1808.3,42.4978]
[1746072448051,1.10576,1808.5,1808.4,1.10576]
[1746072448250,1.10576,1808.5,1808.4,23.14155616]
[1746072448557,1.10576,1808.5,1808.4,22.03579616]
[1746072449756,1.10576,1808.5,1808.4,23.14157616]
[1746072450154,10.56462073,1808.9,1808.4,22.03579616]
[1746072450366,1.10555,1808.8,1808.7,19.54389616]
[1746072450555,1.10555,1808.8,1808.7,1.7133]
[1746072450859,3.60965,1808.8,1808.7,1.7133]
[1746072452163,7.39765,1808.8,1808.7,1.7133]
[1746072452762,1.10566,1808.6,1808.5,0.8118]
[1746072452966,1.10566,1808.6,1808.5,2.5519]
[1746072453261,1.10566,1808.6,1808.5,22.09579616]
[1746072453855,2.82146,1808.6,1808.5,22.09579616]
[1746072454260,1.10566,1808.6,1808.5,22.09579616]
[1746072459661,1.10578,1808.4,1808.3,45.1136]
[1746072459857,1.10578,1808.4,1808.3,45.9648]
[1746072460059,1.10578,1808.4,1808.3,65.50869616]
[1746072460965,1.10578,1808.4,1808.3,67.15729616]
[1746072465370,1.10578,1808.4,1808.3,63.94949616]
[1746072465764,0.8412,1808.5,1808.4,1.10578]
[1746072465765,1.94698,1808.5,1808.4,1.10578]
[1746072465963,1.94698,1808.5,1808.4,12.95986965]
[1746072466166,1.94698,1808.5,1808.4,1.6506]
[1746072466363,3.66328,1808.5,1808.4,1.6506]
[1746072467267,1.10578,1808.4,1808.3,40.8]
[1746072467469,1.10578,1808.4,1808.3,61.99449616]
[1746072467659,3.69008,1808.4,1808.3,61.99449616]
[1746072468471,3.69008,1808.4,1808.3,42.4506]
[1746072469572,3.69008,1808.4,1808.3,1.6506]
[1746072471470,3.69008,1808.4,1808.3,2.75644]
[1746072471672,1.10578,1808.4,1808.3,22.30033616]
[1746072472571,1.94697,1808.5,1808.4,1.10578]
[1746072472775,1.94697,1808.5,1808.4,13.88106965]
[1746072473065,1.94697,1808.5,1808.4,3.67758]
[1746072473270,1.94697,1808.5,1808.4,2.5718]
[1746072474274,3.61967,1808.5,1808.4,2.5718]
[1746072474573,3.61967,1808.5,1808.4,1.7351]
[1746072475874,1.10584,1808.3,1808.2,45.95036]
[1746072476072,1.10584,1808.3,1808.2,47.68986]
[1746072476274,1.10584,1808.3,1808.2,67.23375616]
[1746072478273,2.77852,1808.4,1808.3,1.10584]
[1746072478480,1.10582,1808.4,1808.3,23.09193616]
[1746072480978,1.10582,1808.4,1808.3,21.98609616]
[1746072481179,2.82892,1808.4,1808.3,21.98609616]
[1746072481379,2.82892,1808.4,1808.3,21.15719616]
[1746072482484,2.82892,1808.4,1808.3,22.26303616]
[1746072484283,10.18574073,1808.4,1808.3,21.15719616]
[1746072484782,10.18574073,1808.4,1808.3,22.26303616]
[1746072490488,2.82892,1808.4,1808.3,21.15719616]
[1746072490881,1.94698,1808.5,1808.3,21.15719616]
[1746072491077,1.94698,1808.5,1808.4,21.19049616]
[1746072491282,3.54978,1808.5,1808.4,1.6466]
[1746072491783,3.54978,1808.5,1808.4,2.75238]
[1746072491989,1.10578,1808.5,1808.4,2.75238]
[1746072493688,1.10578,1808.5,1808.4,1.6466]
[1746072494384,1.10578,1808.5,1808.4,2.5054]
[1746072496593,1.10578,1808.5,1808.4,3.61118]
[1746072497096,1.10578,1808.5,1808.4,13.81466965]
[1746072497394,8.46260073,1808.5,1808.4,23.15507616]
[1746072497593,8.46260073,1808.5,1808.4,23.96267616]
[1746072498092,8.46260073,1808.5,1808.4,22.04929616]
[1746072498292,10.07320073,1808.5,1808.4,22.04929616]
[1746072498794,10.07320073,1808.5,1808.1,7.87371]
[1746072499093,1.1059,1808.2,1808.1,8.67891]
[1746072499295,1.1059,1808.2,1808.1,49.47891]
[1746072499490,1.1059,1808.2,1808.1,50.14040651]
[1746072499694,1.10602,1808.0,1807.9,0.8027]
[1746072499893,1.10608,1807.9,1807.8,5.45281]
[1746072500098,1.10608,1807.9,1807.8,6.25551]
[1746072500303,1.10608,1807.9,1807.8,65.80970616]
[1746072500700,1.93618,1807.9,1807.8,65.80970616]
[1746072501408,1.93618,1807.9,1807.8,67.39270616]
[1746072504701,1.93618,1807.9,1807.8,63.83570616]
[1746072504904,1.93618,1807.9,1807.6,0.7897]
[1746072504905,1.10621,1807.7,1807.6,0.7897]
[1746072505208,1.10621,1807.7,1807.6,1.6983]
[1746072505408,1.10621,1807.7,1807.6,63.14846616]
[1746072505702,2.74561,1807.7,1807.6,63.14846616]
[1746072505904,14.12262073,1808.2,1807.6,73.36580616]
[1746072506110,7.35682073,1808.2,1808.1,20.64985616]
[1746072506804,8.46272073,1808.2,1808.1,20.64985616]
[1746072507407,8.46272073,1808.2,1808.1,1.6983]
[1746072507610,10.17842073,1808.2,1808.1,1.6983]
[1746072507910,2.8216,1808.2,1808.1,2.80426]
[1746072508097,2.8216,1808.2,1808.1,1.6983]
[1746072508297,6.6096,1808.2,1808.1,1.6983]
[1746072508805,6.6096,1808.2,1808.0,2.77478]
[1746072508806,1.10596,1808.1,1808.0,0.8216]
[1746072509113,1.10602,1808.0,1807.9,1.65]
[1746072509302,1.10602,1808.0,1807.9,2.75607]
[1746072509501,1.10602,1808.0,1807.9,22.29996616]
[1746072509904,1.10602,1808.0,1807.9,21.19389616]
[1746072510105,1.10602,1808.0,1807.9,22.29997616]
[1746072511612,2.72261,1808.1,1808.0,1.10602]
[1746072511813,1.10593,1808.2,1808.1,1.10592]
[1746072512111,1.10593,1808.2,1808.1,2.75882]
[1746072512508,1.10593,1808.2,1808.1,22.30271616]
[1746072512709,10.17440073,1808.3,1808.2,1.1059]
[1746072512910,1.10588,1808.3,1808.2,22.30269616]
[1746072513110,1.10588,1808.3,1808.2,2.7588]
[1746072513713,8.46260073,1808.4,1808.3,1.10584]
[1746072514012,8.46260073,1808.4,1808.3,23.99573616]
[1746072514408,7.35682073,1808.4,1808.3,23.99573616]
[1746072516707,2.7647,1808.6,1808.5,1.10572]
[1746072516909,1.1057,1808.6,1808.5,20.64961616]
[1746072517108,1.10564,1808.7,1808.6,1.10564]
[1746072517312,1.10566,1808.6,1808.5,11.30916965]
[1746072517716,1.10566,1808.6,1808.5,20.64957616]
[1746072520818,1.10564,1808.7,1808.6,1.10564]
[1746072521015,1.10564,1808.7,1808.6,20.64953616]
[1746072521216,1.10564,1808.7,1808.6,1.10564]
[1746072521518,10.1654,1808.8,1808.4,3.2078]
[1746072521818,1.10567,1808.6,1808.5,1.10567]
[1746072522408,1.10567,1808.6,1808.5,20.64956616]
[1746072535631,1.10567,1808.6,1808.5,19.54389616]
[1746072535827,1.93047,1808.6,1808.5,19.54389616]
[1746072536034,1.10572,1808.5,1808.4,1.10572]
[1746072536232,3.59802,1808.5,1808.4,1.10572]
[1746072536434,3.59802,1808.5,1808.4,2.74212]
[1746072539339,0.8248,1808.6,1808.5,1.10572]
[1746072539539,0.8248,1808.6,1808.5,23.09561616]
[1746072540439,1.93046,1808.6,1808.5,23.09561616]
[1746072540640,3.52066,1808.6,1808.5,21.16989616]
[1746072542237,8.38703,1808.6,1808.2,4.31365]
[1746072542439,3.2078,1808.4,1808.0,5.98107]
[1746072542741,1.10596,1808.1,1808.0,15.22797651]
[1746072543132,1.10596,1808.1,1808.0,25.43146616]
[1746072547242,2.83514,1808.2,1808.1,1.10596]
[1746072547440,3.2078,1808.4,1808.2,1.1059]
[1746072547638,4.47436,1808.5,1808.4,1.10578]
[1746072547941,1.10578,1808.4,1808.3,2.82299]
[1746072548140,1.10578,1808.4,1808.3,1.10579]
[1746072548340,1.10578,1808.4,1808.3,20.64968616]
[1746072549843,1.10584,1808.3,1808.2,0.7989]
[1746072550043,1.10584,1808.3,1808.1,1.10591]
[1746072550242,1.6535,1808.2,1808.1,1.10591]
[1746072550644,1.6535,1808.2,1808.1,20.64980616]
[1746072553040,2.7594,1808.2,1808.1,19.54389616]
[1746072553244,1.10596,1808.1,1808.0,4.31382]
[1746072553545,2.85006,1808.1,1808.0,22.75169616]
[1746072553844,2.85006,1808.1,1807.9,5.52054]
[1746072554045,2.85006,1808.1,1808.0,20.64991616]
[1746072554244,2.85006,1808.1,1808.0,1.10602]
[1746072555049,1.7441,1808.1,1808.0,1.10602]
[1746072555547,2.75944,1808.2,1808.0,10.44642651]
[1746072555747,2.75944,1808.2,1808.0,20.64991616]
[1746072555947,3.3823,1808.2,1808.0,20.64991616]
[1746072556149,1.10596,1808.1,1808.0,20.64991616]
[1746072557558,3.2078,1808.3,1808.0,19.54389616]
[1746072557855,1.10595,1808.2,1808.1,19.54389616]
[1746072558359,1.1059,1808.2,1808.1,20.64982616]
[1746072559560,1.1059,1808.2,1808.1,19.54389616]
[1746072560359,1.10596,1808.1,1808.0,3.2078]
[1746072560553,1.90486,1808.1,1808.0,23.85771616]
[1746072561364,2.76956,1808.1,1808.0,23.85771616]
[1746072562561,1.10586,1808.3,1808.2,1.1059]
[1746072562861,1.10586,1808.3,1808.2,20.64979616]
[1746072563862,2.73072,1808.4,1808.3,1.10584]
[1746072564060,1.6249,1808.4,1808.3,20.64973616]
[1746072564355,16.08706073,1808.5,1808.4,1.10578]
[1746072564562,12.53506073,1808.5,1808.4,21.47337616]
[1746072565162,9.32726073,1808.5,1808.4,21.47337616]
[1746072565665,1.97044,1808.5,1808.4,23.18047616]
[1746072567669,0.8647,1808.5,1808.4,23.18047616]
[1746072567866,7.35682073,1808.6,1808.5,1.10572]
[1746072568069,7.35682073,1808.6,1808.5,22.35671616]
[1746072569063,8.46248073,1808.6,1808.5,22.35671616]
[1746072569469,1.10566,1808.6,1808.5,22.35671616]
[1746072569668,2.75016,1808.6,1808.5,22.35671616]
[1746072571871,1.6445,1808.6,1808.5,22.35671616]
[1746072572270,4.31345,1808.7,1808.6,1.10566]
[1746072572574,4.31345,1808.7,1808.6,22.34575616]
[1746072572772,4.31345,1808.7,1808.6,2.80186]
[1746072572971,5.89075,1808.7,1808.6,1.6962]
[1746072574171,5.89075,1808.7,1808.6,2.80186]
[1746072576472,4.3134,1808.7,1808.6,2.80186]
[1746072577773,1.1056,1808.7,1808.6,2.80186]
[1746072579876,1.1056,1808.7,1808.6,22.34575616]
[1746072581281,1.1056,1808.7,1808.6,21.24009616]
[1746072581480,2.7435,1808.7,1808.6,21.24009616]
[1746072581881,2.7435,1808.7,1808.6,22.34575616]
[1746072582070,2.7435,1808.7,1808.6,1.6962]
[1746072582273,2.7435,1808.7,1808.6,2.80186]
[1746072584787,2.7435,1808.7,1808.6,13.00534965]
[1746072588480,2.7435,1808.7,1808.6,22.34575616]
[1746072589376,1.7334,1808.8,1808.6,21.24009616]
[1746072589577,2.83898,1808.8,1808.7,22.38919616]
[1746072590092,4.53928,1808.8,1808.7,2.8453]
[1746072591993,4.53928,1808.8,1808.7,1.7397]
[1746072592588,1.10572,1808.5,1808.4,4.31355]
[1746072592794,1.10572,1808.5,1808.4,5.97315]
[1746072593086,1.10572,1808.5,1808.4,25.51704616]
[1746072594996,3.65187,1808.6,1808.5,1.10572]
[1746072595186,3.65187,1808.6,1808.5,22.38571616]
[1746072595392,3.65187,1808.6,1808.5,2.84182]
[1746072596390,1.93317,1808.6,1808.5,23.18061616]
[1746072596589,1.10567,1808.6,1808.5,23.18061616]
[1746072597898,2.413,1808.7,1808.6,1.10566]
[1746072597899,3.51865,1808.7,1808.6,1.10566]
[1746072598093,3.51865,1808.7,1808.6,22.34215616]
[1746072598290,1.97787,1808.8,1808.7,1.1056]
[1746072598494,1.97787,1808.8,1808.7,2.7982]
[1746072598696,1.97787,1808.8,1808.7,1.6926]
[1746072598889,3.55447,1808.8,1808.7,1.6926]
[1746072600394,7.34247,1808.8,1808.7,1.6926]
[1746072600791,1.10566,1808.6,1808.5,1.90057]
[1746072600994,1.10566,1808.6,1808.5,1.6667]
[1746072601202,1.10566,1808.6,1808.5,21.21059616]
[1746072601494,2.69946,1808.6,1808.5,21.21059616]
[1746072601887,2.69946,1808.6,1808.5,22.31631616]
[1746072605290,1.10564,1808.7,1808.6,1.10566]
[1746072605587,1.10564,1808.7,1808.6,23.20525616]
[1746072605799,1.10564,1808.7,1808.6,22.09959616]
[1746072606295,1.94534,1808.7,1808.6,22.09959616]
[1746072606689,1.94534,1808.7,1808.6,23.20525616]
[1746072606889,1.94534,1808.7,1808.6,22.09959616]
[1746072607491,1.94534,1808.7,1808.6,23.20525616]
[1746072607997,1.10564,1808.7,1808.6,23.20525616]
[1746072613185,1.10564,1808.7,1808.6,22.09959616]
[1746072613695,1.10564,1808.7,1808.6,23.20525616]
[1746072614200,1.10564,1808.7,1808.6,22.09959616]
[1746072614497,1.10564,1808.7,1808.6,62.89959616]
[1746072614696,1.10564,1808.7,1808.6,64.00525616]
[1746072618801,1.10564,1808.7,1808.6,62.89959616]
[1746072619195,1.92704,1808.7,1808.6,62.89959616]
[1746072619901,1.92704,1808.7,1808.6,64.00525616]
[1746072621905,1.10564,1808.7,1808.6,64.00525616]
[1746072625007,8.46246073,1808.7,1808.6,64.00525616]
[1746072627711,1.10564,1808.7,1808.6,64.00525616]
[1746072629508,1.10564,1808.7,1808.6,62.06469616]
[1746072629708,3.58034,1808.7,1808.6,63.17035616]
[1746072630008,2.4747,1808.7,1808.6,63.17035616]
[1746072630212,1.9607,1808.7,1808.6,63.97005616]
[1746072631110,9.31752073,1808.7,1808.6,63.97005616]
[1746072631711,7.35682073,1808.7,1808.6,63.97005616]
[1746072632514,8.46242073,1808.7,1808.6,63.97005616]
[1746072633412,7.35682073,1808.7,1808.6,63.97005616]
[1746072634413,1.10555,1808.8,1808.7,1.1056]
[1746072634610,3.63265,1808.8,1808.7,20.64949616]
[1746072635311,1.1056,1808.7,1808.6,43.62641]
[1746072635505,3.5811,1808.7,1808.6,43.62641]
[1746072635707,2.4755,1808.7,1808.6,63.17030616]
[1746072636312,3.5811,1808.7,1808.6,63.17030616]
[1746072636612,2.4755,1808.7,1808.6,63.17030616]
[1746072638216,0.8537,1808.8,1808.7,1.1056]
[1746072638512,0.8537,1808.8,1808.7,23.19719616]
[1746072638702,11.00634073,1808.9,1808.8,1.10553]
[1746072638906,11.83124073,1808.9,1808.8,22.30262616]
[1746072639213,11.83124073,1808.9,1808.8,2.75873]
[1746072640112,10.72572073,1808.9,1808.8,2.75873]
[1746072640316,8.22232073,1808.9,1808.8,22.30262616]
[1746072642316,9.32779073,1808.9,1808.8,22.30262616]
[1746072644117,1.97097,1808.9,1808.8,22.30262616]
[1746072646923,3.58367,1808.9,1808.8,22.30262616]
[1746072652528,2.4782,1808.9,1808.8,22.30262616]
[1746072653021,7.35682073,1809.1,1809.0,1.10541]
[1746072653228,7.35682073,1809.1,1809.0,20.64930616]
[1746072653427,7.35682073,1809.1,1809.0,21.05770187]
[1746072653620,7.35682073,1809.1,1809.0,23.51120187]
[1746072654625,7.35682073,1809.1,1809.0,27.05520187]